fUSD/lending_fUSD_20250804
["ID","MTS","AMOUNT","RATE_DAILY","PERIOD"]
[377190578,1754278244037,-271.980692,0.0004502,14]
[377190579,1754278244047,-271.980692,0.0004502,14]
[377190580,1754278244059,-271.980692,0.0004502,14]
[377190581,1754278244070,-271.980692,0.0004502,14]
[377190582,1754278244079,-177.685595,0.0004502,14]
[377190583,1754278244089,-177.685595,0.0004502,14]
[377190584,1754278244098,-151.0,0.0004502,14]
[377190585,1754278244108,-151.0,0.0004502,14]
[377190586,1754278244118,-190.598473,0.0004502,14]
[377190587,1754278244128,-156.513014,0.0004503,14]
[377190588,1754278244139,-151.0,0.0004503,14]
[377190589,1754278244150,-151.0,0.0004503,14]
[377190590,1754278244159,-151.0,0.0004503,14]
[377190591,1754278244169,-151.769587,0.0004503,14]
[377190592,1754278244179,-151.0,0.0004503,14]
[377190593,1754278244189,-151.0,0.0004503,14]
[377190594,1754278244199,-151.0,0.0004503,14]
[377190595,1754278244209,-151.0,0.0004503,14]
[377190596,1754278244218,-151.0,0.0004503,14]
[377190597,1754278244227,-151.0,0.0004503,14]
[377190598,1754278244237,-151.0,0.0004503,14]
[377190599,1754278244247,-151.0,0.0004503,14]
[377190600,1754278244258,-151.0,0.0004503,14]
[377190601,1754278244268,-151.0,0.0004503,14]
[377190602,1754278244277,-245.0,0.0004503,14]
[377190603,1754278244288,-151.0,0.0004503,14]
[377190604,1754278244298,-295.672472,0.0004503,14]
[377190605,1754278244308,-151.0,0.0004503,14]
[377190606,1754278244318,-151.0,0.0004503,14]
[377190607,1754278244328,-295.672472,0.0004503,14]
[377190608,1754278244339,-151.0,0.0004503,14]
[377190609,1754278244349,-151.0,0.0004503,14]
[377190610,1754278244360,-151.0,0.0004503,14]
[377190611,1754278244369,-151.0,0.0004503,14]
[377190612,1754278244379,-151.0,0.0004503,14]
[377190613,1754278244388,-235.489405,0.0004503,14]
[377190614,1754278244398,-235.489405,0.0004503,14]
[377190615,1754278244409,-235.489405,0.0004503,14]
[377190616,1754278244419,-151.0,0.0004503,14]
[377190617,1754278244429,-235.489405,0.0004503,14]
[377190618,1754278244440,-235.489405,0.0004503,14]
[377190619,1754278244450,-235.489405,0.0004503,14]
[377190620,1754278244460,-292.325987,0.0004503,14]
[377190621,1754278244470,-151.0,0.0004503,14]
[377190622,1754278244481,-282.554752,0.0004503,14]
[377190623,1754278244490,-151.0,0.0004503,14]
[377190624,1754278244499,-151.0,0.0004503,14]
[377190625,1754278244508,-151.0,0.0004503,14]
[377190626,1754278244519,-151.0,0.0004503,14]
[377190627,1754278244529,-151.0,0.0004503,14]
[377190628,1754278244538,-440.282274,0.0004503,14]
[377190629,1754278244547,-440.282274,0.0004503,14]
[377190630,1754278244556,-440.282274,0.0004503,14]
[377190631,1754278244566,-440.282274,0.0004503,14]
[377190632,1754278244575,-151.0,0.0004503,14]
[377190633,1754278244585,-154.89547,0.0004503,14]
[377190634,1754278244594,-151.0,0.0004503,14]
[377190635,1754278244604,-151.0,0.0004503,14]
[377190636,1754278244613,-151.0,0.0004503,14]
[377190637,1754278244622,-295.842369,0.0004503,14]
[377190638,1754278244631,-271.980692,0.0004503,14]
[377190639,1754278244641,-271.980692,0.0004503,14]
[377190640,1754278244651,-271.980692,0.0004503,14]
[377190641,1754278244660,-271.980692,0.0004503,14]
[377190642,1754278244671,-151.0,0.0004503,14]
[377190643,1754278244680,-151.0,0.0004503,14]
[377190644,1754278244690,-151.0,0.0004503,14]
[377190645,1754278244699,-879.395519,0.0004503,14]
[377190646,1754278244709,-879.395519,0.0004503,14]
[377190647,1754278244719,-177.685595,0.0004503,14]
[377190648,1754278244728,-177.685595,0.0004503,14]
[377190649,1754278244738,-247.687436,0.0004503,14]
[377190650,1754278244747,-247.687436,0.0004503,14]
[377190651,1754278244757,-247.687436,0.0004503,14]
[377190652,1754278244766,-247.687436,0.0004503,14]
[377190653,1754278244776,-151.0,0.0004503,14]
[377190654,1754278244785,-151.0,0.0004503,14]
[377190655,1754278244795,-151.0,0.0004503,14]
[377190656,1754278244805,-151.0,0.0004503,14]
[377190657,1754278244814,-282.917082,0.0004503,14]
[377190658,1754278244823,-151.0,0.0004503,14]
[377190659,1754278244833,-151.0,0.0004503,14]
[377190660,1754278244842,-1553.465892,0.0004503,14]
[377190661,1754278244852,-1553.465892,0.0004503,14]
[377190662,1754278244861,-1553.465892,0.0004503,14]
[377190663,1754278244871,-1553.465892,0.0004503,14]
[377190664,1754278244881,-155.53542,0.0004503,14]
[377190665,1754278244892,-155.53542,0.0004503,14]
[377190666,1754278244904,-237.15554,0.0004503,14]
[377190667,1754278244914,-237.15554,0.0004503,14]
[377190668,1754278244923,-237.15554,0.0004503,14]
[377190669,1754278244933,-237.15554,0.0004503,14]
[377190670,1754278244943,-151.0,0.0004503,14]
[377190671,1754278244953,-151.0,0.0004503,14]
[377190672,1754278244962,-151.0,0.0004503,2]
[377190673,1754278244975,-5391.81600769,0.0004503,2]
[377190674,1754278244985,-280.91920154,0.0004503,2]
[377190675,1754278244994,-500.0,0.0004503,2]
[377190676,1754278245004,-604.34803581,0.0004503,2]
[377190677,1754278245015,-500.0,0.0004503,2]
[377190678,1754278245024,-500.0,0.0004503,2]
[377190679,1754278245034,-500.0,0.0004503,2]
[377190680,1754278245043,-500.0,0.0004503,2]
[377190681,1754278245053,-274.9703533,0.0004503,2]
[377190682,1754278245063,-500.0,0.0004503,2]
[377190683,1754278245073,-500.0,0.0004503,2]
[377190684,1754278245083,-500.0,0.0004503,2]
[377190685,1754278245093,-500.0,0.0004503,2]
[377190686,1754278245102,-500.0,0.0004503,2]
[377190687,1754278245112,-500.0,0.0004503,2]
[377190688,1754278245121,-500.0,0.0004503,2]
[377190689,1754278245131,-500.0,0.0004503,2]
[377190690,1754278245142,-500.0,0.0004503,2]
[377190691,1754278245153,-500.0,0.0004503,2]
[377190692,1754278245162,-500.0,0.0004503,2]
[377190693,1754278245172,-500.0,0.0004503,2]
[377190694,1754278245182,-500.0,0.0004503,2]
[377190695,1754278245191,-300.0,0.0004503,2]
[377190696,1754278245201,-500.0,0.0004503,2]
[377190697,1754278245210,-500.0,0.0004503,2]
[377190698,1754278245220,-500.0,0.0004503,2]
[377190699,1754278245229,-300.0,0.0004503,2]
[377190700,1754278245239,-500.0,0.0004503,2]
[377190701,1754278245249,-300.0,0.0004503,2]
[377190702,1754278245259,-500.0,0.0004503,2]
[377190703,1754278245268,-500.0,0.0004503,2]
[377190704,1754278245278,-300.0,0.0004503,2]
[377190705,1754278245288,-500.0,0.0004503,2]
[377190706,1754278245297,-300.0,0.0004503,2]
[377190707,1754278245306,-511.50421188,0.0004503,2]
[377190708,1754278245316,-500.0,0.0004503,2]
[377190709,1754278245325,-151.63335307,0.0004503,2]
[377190710,1754278245335,-300.0,0.0004503,2]
[377190711,1754278245344,-300.0,0.0004503,2]
[377190712,1754278245354,-300.0,0.0004503,2]
[377190713,1754278245363,-300.0,0.0004503,2]
[377190714,1754278245373,-300.0,0.0004503,2]
[377190715,1754278245382,-300.0,0.0004503,2]
[377190716,1754278245392,-500.0,0.0004503,2]
[377190717,1754278245401,-500.0,0.0004503,2]
[377190718,1754278245411,-500.0,0.0004503,2]
[377190719,1754278245420,-500.0,0.0004503,2]
[377190720,1754278245430,-500.0,0.0004503,2]
[377190721,1754278245440,-500.0,0.0004503,2]
[377190722,1754278245449,-500.0,0.0004503,2]
[377190723,1754278245459,-500.0,0.0004503,2]
[377190724,1754278245468,-500.0,0.0004503,2]
[377190725,1754278245479,-500.0,0.0004503,2]
[377190726,1754278245489,-500.0,0.0004503,2]
[377190727,1754278245498,-500.0,0.0004503,2]
[377190728,1754278245508,-500.0,0.0004503,2]
[377190729,1754278245518,-277.35679052,0.0004503,2]
[377190730,1754278245528,-500.0,0.0004503,2]
[377190731,1754278245539,-500.0,0.0004503,2]
[377190732,1754278245549,-500.0,0.0004503,2]
[377190733,1754278245559,-416.03518578,0.0004503,2]
[377190734,1754278245570,-244.50354011,0.0004503,2]
[377190735,1754278245580,-500.0,0.0004503,2]
[377190736,1754278245590,-500.0,0.0004503,2]
[377190737,1754278245601,-500.0,0.0004503,2]
[377190738,1754278245612,-500.0,0.0004503,2]
[377190739,1754278245623,-560.61881967,0.0004503,2]
[377190740,1754278245633,-180.37945049,0.0004503,2]
[377190741,1754278245644,-160.0,0.0004503,2]
[377190742,1754278245654,-500.0,0.0004503,2]
[377190743,1754278245665,-500.0,0.0004503,2]
[377190744,1754278245675,-500.0,0.0004503,2]
[377190745,1754278245686,-500.0,0.0004503,2]
[377190746,1754278245696,-500.0,0.0004503,2]
[377190747,1754278245707,-500.0,0.0004503,2]
[377190748,1754278245717,-500.0,0.0004503,2]
[377190749,1754278245727,-157.28520502,0.0004503,2]
[377190750,1754278245738,-500.0,0.0004503,2]
[377190751,1754278245748,-500.0,0.0004503,2]
[377190752,1754278245758,-151.0,0.00045072,14]
[377190753,1754278245770,-151.0,0.00045072,14]
[377190754,1754278245780,-151.0,0.00045072,14]
[377190755,1754278245789,-152.931534,0.00045072,14]
[377190756,1754278245798,-461.975391,0.00045072,14]
[377190757,1754278245808,-461.975391,0.00045072,14]
[377190758,1754278245817,-461.975391,0.00045072,14]
[377190759,1754278245827,-461.975391,0.00045072,14]
[377190760,1754278245837,-160.220119,0.00045072,14]
[377190761,1754278245846,-879.395519,0.00045072,14]
[377190762,1754278245856,-879.395519,0.00045072,14]
[377190763,1754278245866,-155.53542,0.00045072,14]
[377190764,1754278245875,-155.53542,0.00045072,14]
[377190765,1754278245884,-501.6343353,0.00045073,10]
[377190766,1754278245896,-500.0,0.00045073,10]
[377190767,1754278245906,-151.0,0.00045085,14]
[377190768,1754278245915,-151.0,0.00045085,14]
[377190769,1754278245925,-5591.31319997,0.00045085,2]
[377190770,1754278245935,-226.82,0.000451,30]
[377190771,1754278245944,-151.0,0.00045121,14]
[377190772,1754278245955,-177.685595,0.00045121,14]
[377190773,1754278245967,-177.685595,0.00045121,14]
[377190775,1754278245977,-151.0,0.00045121,14]
[377190776,1754278245988,-151.0,0.00045121,14]
[377190777,1754278245997,-151.0,0.0004513,14]
[377190778,1754278246007,-151.0,0.0004513,14]
[377190779,1754278246016,-151.0,0.0004513,14]
[377190780,1754278246026,-151.0,0.0004513,14]
[377190781,1754278246036,-440.282274,0.0004513,14]
[377190782,1754278246046,-440.282274,0.0004513,14]
[377190783,1754278246056,-271.980692,0.0004513,14]
[377190784,1754278246065,-271.980692,0.0004513,14]
[377190785,1754278246076,-151.0,0.0004514,14]
[377190786,1754278246087,-151.0,0.0004514,14]
[377190787,1754278246098,-151.0,0.0004514,14]
[377190788,1754278246109,-247.687436,0.0004514,14]
[377190789,1754278246119,-247.687436,0.0004514,14]
[377190790,1754278246130,-151.0,0.0004514,14]
[377190791,1754278246140,-151.0,0.0004514,14]
[377190792,1754278246151,-151.0,0.0004514,14]
[377190793,1754278246161,-1553.465892,0.0004514,14]
[377190794,1754278246171,-1553.465892,0.0004514,14]
[377190795,1754278246181,-237.15554,0.0004514,14]
[377190796,1754278246190,-237.15554,0.0004514,14]
[377190797,1754278246199,-5798.19178837,0.0004514,2]
[377190798,1754278246209,-6012.72488454,0.00045195,2]
[377190799,1754278246218,-151.0,0.00045244,14]
[377190800,1754278246228,-461.975391,0.00045244,14]
[377190801,1754278246237,-461.975391,0.00045244,14]
[377190802,1754278246248,-154.971489,0.00045244,14]
[377190803,1754278246259,-193.0,0.00045244,14]
[377190804,1754278246269,-151.0,0.00045244,14]
[377190805,1754278246280,-151.0,0.00045244,14]
[377190806,1754278246290,-235.489405,0.00045244,14]
[377190807,1754278246300,-235.489405,0.00045244,14]
[377190808,1754278246310,-155.53542,0.00045244,14]
[377190809,1754278246319,-155.53542,0.00045244,14]
[377190810,1754278246329,-151.0,0.0004525,14]
[377190811,1754278246338,-151.0,0.0004525,14]
[377190812,1754278246349,-151.0,0.0004525,14]
[377190813,1754278246359,-295.672472,0.0004525,14]
[377190814,1754278246462,-295.672472,0.0004525,14]
[377190815,1754278246472,-151.0,0.0004525,14]
[377190816,1754278246481,-151.0,0.0004525,14]
[377190818,1754278246491,-151.0,0.0004525,14]
[377190820,1754278246500,-151.0,0.0004525,14]
[377190822,1754278246509,-151.0,0.0004525,14]
[377190823,1754278246518,-156.290156,0.0004525,14]
[377190824,1754278246528,-151.0,0.0004525,14]
[377190825,1754278246537,-879.395519,0.0004525,14]
[377190826,1754278246546,-879.395519,0.0004525,14]
[377190827,1754278246555,-6235.19570527,0.0004525,2]
[377190828,1754278246565,-151.0,0.00045254,14]
[377190829,1754278246574,-548.0,0.00045254,60]
[377190830,1754278246584,-440.282274,0.00045296,14]
[377190831,1754278246593,-440.282274,0.00045296,14]
[377190832,1754278246602,-271.980692,0.00045296,14]
[377190833,1754278246612,-271.980692,0.00045296,14]
[377190834,1754278246621,-1062.0,0.000453,7]
[377190835,1754278246631,-151.0,0.00045305,14]
[377190836,1754278246640,-177.685595,0.00045305,14]
[377190837,1754278246650,-177.685595,0.00045305,14]
[377190839,1754278246660,-151.0,0.00045305,14]
[377190841,1754278246669,-151.0,0.00045305,14]
[377190843,1754278246679,-6465.89794637,0.00045305,2]
[377190845,1754278246688,-151.0,0.0004536,14]
[377190847,1754278246697,-151.0,0.0004536,14]
[377190848,1754278246707,-151.0,0.0004536,14]
[377190849,1754278246717,-247.687436,0.0004536,14]
[377190850,1754278246726,-247.687436,0.0004536,14]
[377190851,1754278246737,-151.0,0.0004536,14]
[377190852,1754278246747,-151.0,0.0004536,14]
[377190853,1754278246756,-151.0,0.0004536,14]
[377190855,1754278246766,-1553.465892,0.0004536,14]
[377190857,1754278246775,-1553.465892,0.0004536,14]
[377190858,1754278246784,-237.15554,0.0004536,14]
[377190859,1754278246793,-237.15554,0.0004536,14]
[377190860,1754278246803,-6705.13617038,0.0004536,2]
[377190861,1754278246812,-531.28,0.0004536,120]
[377190862,1754278246821,-2201.3,0.000454,14]
[377190863,1754278246831,-328.03186297,0.00045415,2]
[377190864,1754278246841,-1847.2781,0.0004543,28]
[377190865,1754278246850,-600.0,0.0004552,14]
[377190866,1754278246861,-416.84,0.0004552,14]
[377190867,1754278246871,-506.00426771,0.00045621,10]
[377190868,1754278246880,-188.71103143,0.00045666,15]
[377190869,1754278246890,-600.0,0.0004568,14]
[377190870,1754278246901,-416.84,0.0004568,14]
[377190871,1754278246911,-153.71,0.00045741,120]
[377190872,1754278246921,-151.0,0.00045762,14]
[377190873,1754278246930,-151.0,0.00045762,14]
[377190874,1754278246941,-151.0,0.00045786,14]
[377190875,1754278246950,-154.086328,0.00045786,14]
[377190876,1754278246960,-151.0,0.00045786,14]
[377190877,1754278246972,-440.282274,0.00045786,14]
[377190878,1754278246982,-440.282274,0.00045786,14]
[377190879,1754278246992,-271.980692,0.00045786,14]
[377190880,1754278247001,-271.980692,0.00045786,14]
[377190881,1754278247011,-151.0,0.00045796,14]
[377190882,1754278247020,-152.078767,0.00045796,14]
[377190883,1754278247030,-151.0,0.00045796,14]
[377190884,1754278247039,-197.583181,0.00045796,14]
[377190885,1754278247049,-197.583181,0.00045796,14]
[377190886,1754278247060,-151.0,0.00045796,14]
[377190887,1754278247069,-186.242691,0.00045796,14]
[377190888,1754278247079,-186.242691,0.00045796,14]
[377190889,1754278247089,-151.0,0.00045796,14]
[377190890,1754278247099,-151.0,0.00045796,14]
[377190891,1754278247108,-155.53542,0.000458,14]
[377190892,1754278247118,-155.53542,0.000458,14]
[377190893,1754278247128,-600.0,0.0004584,14]
[377190894,1754278247138,-416.84,0.0004584,14]
[377190895,1754278247148,-1202.91,0.0004589,30]
[377190896,1754278247157,-10031.29768006,0.000459,30]
[377190897,1754278247167,-515.0,0.00045905,23]
[377190898,1754278247176,-158.25371841,0.00045941,22]
[377190899,1754278247185,-151.0,0.00045951,14]
[377190900,1754278247195,-151.0,0.00045951,14]
[377190901,1754278247205,-235.489405,0.00045951,14]
[377190902,1754278247216,-235.489405,0.00045951,14]
[377190903,1754278247225,-151.0,0.00045961,14]
[377190904,1754278247235,-151.0,0.00045961,14]
[377190905,1754278247244,-151.0,0.00045961,14]
[377190906,1754278247254,-227.79497,0.00045961,14]
[377190907,1754278247263,-151.0,0.00045961,14]
[377190908,1754278247273,-295.672472,0.00045961,14]
[377190909,1754278247283,-295.672472,0.00045961,14]
[377190910,1754278247293,-151.0,0.00045961,14]
[377190911,1754278247302,-151.0,0.00045961,14]
[377190912,1754278247311,-151.0,0.00045961,14]
[377190913,1754278247321,-151.0,0.00045961,14]
[377190914,1754278247330,-151.0,0.00045961,14]
[377190915,1754278247339,-879.395519,0.00045961,14]
[377190916,1754278247349,-879.395519,0.00045961,14]
[377190917,1754278247359,-418.46,0.00046,14]
[377190918,1754278247368,-226.82,0.00046,30]
[377190919,1754278247378,-11267.62097481,0.00046,10]
[377190920,1754278247388,-500.0,0.00046,120]
[377190921,1754278247398,-1008.0,0.00046,7]
[377190922,1754278247408,-440.282274,0.0004603,14]
[377190923,1754278247418,-440.282265,0.0004603,14]
[377190924,1754278247429,-271.980692,0.0004603,14]
[377190925,1754278247439,-271.980695,0.0004603,14]
[377190926,1754278247450,-151.587228,0.0004604,14]
[377190927,1754278247461,-151.0,0.0004604,14]
[377190928,1754278247471,-151.0,0.0004604,14]
[377190929,1754278247483,-151.0,0.0004604,14]
[377190930,1754278247492,-152.551878,0.0004604,14]
[377190931,1754278247501,-151.0,0.0004604,14]
[377190932,1754278247510,-151.0,0.0004604,14]
[377190933,1754278247519,-151.0,0.0004604,14]
[377190934,1754278247529,-184.107189,0.0004604,14]
[377190935,1754278247538,-151.0,0.0004604,14]
[377190936,1754278247548,-151.0,0.0004604,14]
[377190937,1754278247557,-151.0,0.0004604,14]
[377190938,1754278247567,-159.022194,0.0004604,14]
[377190939,1754278247577,-151.0,0.0004604,14]
[377190940,1754278247586,-161.047084,0.0004604,14]
[377190941,1754278247595,-161.047084,0.0004604,14]
[377190942,1754278247604,-161.047084,0.0004604,14]
[377190943,1754278247613,-161.047084,0.0004604,14]
[377190944,1754278247622,-151.0,0.0004604,14]
[377190945,1754278247631,-151.0,0.0004604,14]
[377190946,1754278247640,-151.0,0.0004604,14]
[377190947,1754278247649,-151.0,0.0004604,14]
[377190948,1754278247659,-151.0,0.0004604,14]
[377190949,1754278247668,-151.0,0.0004604,14]
[377190950,1754278247678,-226.969151,0.0004604,14]
[377190951,1754278247687,-226.969151,0.0004604,14]
[377190952,1754278247696,-151.0,0.0004604,14]
[377190953,1754278247706,-151.0,0.0004604,14]
[377190954,1754278247715,-193.15946,0.0004604,14]
[377190955,1754278247724,-759.368077,0.0004604,14]
[377190956,1754278247734,-759.368077,0.0004604,14]
[377190957,1754278247743,-151.0,0.0004604,14]
[377190958,1754278247752,-151.0,0.0004604,14]
[377190959,1754278247761,-151.0,0.0004604,14]
[377190960,1754278247771,-162.358068,0.0004604,14]
[377190961,1754278247781,-295.672472,0.0004604,14]
[377190962,1754278247789,-295.672472,0.0004604,14]
[377190963,1754278247799,-212.283583,0.0004604,14]
[377190964,1754278247808,-212.283583,0.0004604,14]
[377190965,1754278247817,-295.672472,0.0004604,14]
[377190966,1754278247826,-295.672472,0.0004604,14]
[377190967,1754278247835,-212.283583,0.0004604,14]
[377190968,1754278247844,-212.283583,0.0004604,14]
[377190969,1754278247853,-247.744462,0.0004604,14]
[377190970,1754278247862,-151.0,0.0004604,14]
[377190971,1754278247871,-151.0,0.0004604,14]
[377190972,1754278247880,-151.0,0.0004604,14]
[377190973,1754278247890,-151.0,0.0004604,14]
[377190974,1754278247903,-201.008142,0.0004604,14]
[377190975,1754278247913,-151.0,0.0004604,14]
[377190976,1754278247922,-151.0,0.0004604,14]
[377190977,1754278247931,-151.0,0.0004604,14]
[377190978,1754278247940,-151.0,0.0004604,14]
[377190979,1754278247949,-151.0,0.0004604,14]
[377190980,1754278247958,-293.093641,0.0004604,14]
[377190981,1754278247967,-177.685595,0.0004604,14]
[377190982,1754278247978,-177.685595,0.0004604,14]
[377190983,1754278247987,-247.687436,0.0004604,14]
[377190984,1754278247996,-247.687436,0.0004604,14]
[377190985,1754278248006,-151.0,0.0004604,14]
[377190986,1754278248016,-290.61025,0.0004604,14]
[377190987,1754278248025,-1553.465892,0.0004604,14]
[377190988,1754278248034,-1553.465892,0.0004604,14]
[377190989,1754278248043,-237.15554,0.0004604,14]
[377190990,1754278248052,-237.15554,0.0004604,14]
[377190991,1754278248062,-151.0,0.0004604,14]
[377190992,1754278248071,-171.384427,0.0004604,14]
[377190993,1754278248081,-220.605142,0.00046041,14]
[377190994,1754278248090,-243.156381,0.00046041,14]
[377190995,1754278248100,-151.937112,0.00046041,14]
[377190996,1754278248110,-151.0,0.00046041,14]
[377190997,1754278248119,-151.0,0.00046041,14]
[377190998,1754278248129,-151.0,0.00046041,14]
[377190999,1754278248140,-151.0,0.00046041,14]
[377191000,1754278248150,-156.312294,0.00046041,14]
[377191001,1754278248160,-161.047084,0.00046041,14]
[377191002,1754278248169,-161.047084,0.00046041,14]
[377191003,1754278248179,-151.0,0.00046041,14]
[377191004,1754278248188,-151.0,0.00046041,14]
[377191005,1754278248198,-151.0,0.00046041,14]
[377191006,1754278248207,-226.969151,0.00046041,14]
[377191007,1754278248216,-226.969151,0.00046041,14]
[377191008,1754278248226,-151.0,0.00046041,14]
[377191009,1754278248235,-151.0,0.00046041,14]
[377191010,1754278248245,-759.368077,0.00046041,14]
[377191011,1754278248254,-151.0,0.00046041,14]
[377191012,1754278248264,-151.0,0.00046041,14]
[377191013,1754278248273,-151.0,0.00046041,14]
[377191014,1754278248283,-151.0,0.00046041,14]
[377191015,1754278248292,-151.0,0.00046041,14]
[377191016,1754278248302,-151.0,0.00046041,14]
[377191017,1754278248312,-295.672472,0.00046041,14]
[377191018,1754278248321,-295.672472,0.00046041,14]
[377191019,1754278248331,-212.283583,0.00046041,14]
[377191020,1754278248341,-295.672472,0.00046041,14]
[377191021,1754278248350,-295.672472,0.00046041,14]
[377191022,1754278248366,-212.283583,0.00046041,14]
[377191023,1754278248384,-151.0,0.00046041,14]
[377191024,1754278248394,-235.489405,0.00046041,14]
[377191025,1754278248403,-235.489405,0.00046041,14]
[377191026,1754278248412,-235.489405,0.00046041,14]
[377191027,1754278248421,-235.489405,0.00046041,14]
[377191028,1754278248430,-151.0,0.00046041,14]
[377191029,1754278248439,-241.196721,0.00046041,14]
[377191030,1754278248448,-151.0,0.00046041,14]
[377191031,1754278248457,-151.0,0.00046041,14]
[377191032,1754278248467,-162.718965,0.00046041,14]
[377191033,1754278248476,-151.0,0.00046041,14]
[377191034,1754278248485,-151.0,0.00046041,14]
[377191035,1754278248494,-155.53542,0.00046041,14]
[377191036,1754278248503,-155.535411,0.00046041,14]
[377191037,1754278248512,-500.0,0.0004605,120]
[377191038,1754278248521,-500.0,0.0004605,120]
[377191039,1754278248531,-500.0,0.0004605,120]
[377191040,1754278248540,-500.0,0.0004605,120]
[377191041,1754278248555,-500.0,0.0004605,120]
[377191042,1754278248564,-500.0,0.0004605,120]
[377191043,1754278248574,-586.44659513,0.0004605,120]
[377191044,1754278248583,-151.0,0.00046051,14]
[377191045,1754278248592,-151.0,0.00046051,14]
[377191046,1754278248602,-151.0,0.00046051,14]
[377191047,1754278248612,-157.134854,0.00046051,14]
[377191048,1754278248621,-157.134854,0.00046051,14]
[377191049,1754278248630,-157.134854,0.00046051,14]
[377191050,1754278248639,-157.134854,0.00046051,14]
[377191051,1754278248649,-157.134854,0.00046051,14]
[377191052,1754278248658,-157.134854,0.00046051,14]
[377191053,1754278248667,-151.0,0.00046051,14]
[377191054,1754278248677,-151.0,0.00046051,14]
[377191055,1754278248686,-199.943647,0.00046051,14]
[377191056,1754278248696,-151.0,0.00046051,14]
[377191057,1754278248705,-151.0,0.00046051,14]
[377191058,1754278248715,-151.0,0.00046051,14]
[377191059,1754278248724,-263.231326,0.00046051,14]
[377191060,1754278248735,-263.231326,0.00046051,14]
[377191061,1754278248744,-263.231326,0.00046051,14]
[377191062,1754278248753,-151.0,0.00046051,14]
[377191063,1754278248762,-151.0,0.00046051,14]
[377191064,1754278248772,-151.0,0.00046051,14]
[377191065,1754278248781,-151.0,0.00046051,14]
[377191066,1754278248790,-151.0,0.00046051,14]
[377191067,1754278248799,-151.0,0.00046051,14]
[377191068,1754278248808,-151.0,0.00046051,14]
[377191069,1754278248817,-151.0,0.00046051,14]
[377191070,1754278248827,-151.0,0.00046051,14]
[377191071,1754278248836,-151.0,0.00046051,14]
[377191072,1754278248846,-879.395519,0.00046051,14]
[377191073,1754278248855,-879.395519,0.00046051,14]
[377191074,1754278248865,-177.685595,0.00046051,14]
[377191075,1754278248875,-177.685595,0.00046051,14]
[377191076,1754278248884,-247.687436,0.00046051,14]
[377191077,1754278248896,-247.687442,0.00046051,14]
[377191078,1754278248906,-151.0,0.00046051,14]
[377191079,1754278248915,-1553.465892,0.00046051,14]
[377191080,1754278248924,-1553.465883,0.00046051,14]
[377191081,1754278248935,-237.15554,0.00046051,14]
[377191082,1754278248945,-237.155544,0.00046051,14]
[377191083,1754278248954,-151.0,0.00046051,14]
[377191084,1754278248964,-152.520638,0.00046052,14]
[377191085,1754278248980,-157.134854,0.00046052,14]
[377191086,1754278248992,-157.134854,0.00046052,14]
[377191087,1754278249001,-152.817705,0.00046052,14]
[377191088,1754278249010,-263.231326,0.00046052,14]